bitfinex-derivatives/quotes_SOLF0:USTF0_20260315
["timestamp","ask_amount","ask_price","bid_price","bid_amount"]
[1773555228556,3.84835761,88.406,88.361,3.79501821]
[1773555239370,3.84016233,88.414,88.371,3.80568998]
[1773555240667,3.84016233,88.411,88.371,3.80568998]
[1773555241366,3.84016233,88.406,88.361,3.80568998]
[1773555242567,10.178,88.405,88.361,3.80568998]
[1773555242767,14.01816233,88.405,88.361,3.80568998]
[1773555243671,3.84016233,88.404,88.361,3.80568998]
[1773555244370,3.84016233,88.397,88.351,3.80568998]
[1773555245067,3.84016233,88.393,88.351,3.80568998]
[1773555254274,3.84016233,88.393,88.353,3.80568998]
[1773555255686,3.84016233,88.393,88.35,3.07159233]
[1773555255687,3.84016233,88.393,88.355,3.80568998]
[1773555257285,3.84016233,88.393,88.357,3.80568998]
[1773555261591,3.84016233,88.409,88.359,3.80568998]
[1773555262591,3.84016233,88.409,88.361,3.97678387]
[1773555266096,8.71964665,88.408,88.361,3.97678387]
[1773555266290,3.65056233,88.407,88.361,3.97678387]
[1773555268597,3.65056233,88.407,88.364,3.97678387]
[1773555276203,3.65056233,88.407,88.367,3.97678387]
[1773555276399,10.177,88.414,88.367,3.97678387]
[1773555276604,3.65056233,88.412,88.367,3.97678387]
[1773555276803,3.65056233,88.41,88.367,3.97678387]
[1773555277004,8.7216759,88.409,88.367,3.97678387]
[1773555277306,12.37223823,88.408,88.367,3.97678387]
[1773555277607,3.65056233,88.408,88.367,3.97678387]
[1773555277806,3.65056233,88.401,88.367,3.97678387]
[1773555283705,3.65056233,88.412,88.367,3.97678387]
[1773555283913,3.65056233,88.412,88.215,90.73591353]
[1773555283914,3.65056233,88.438,88.391,3.97678387]
[1773555284710,3.65056233,88.438,88.394,3.97678387]
[1773555285413,3.65056233,88.438,88.381,3.97678387]
[1773555286513,3.65056233,88.436,88.381,3.97678387]
[1773555287512,3.65056233,88.436,88.383,3.97678387]
[1773555287808,3.65056233,88.436,88.391,3.97678387]
[1773555288404,3.65056233,88.436,88.384,10.181]
[1773555288608,3.65056233,88.447,88.401,3.97678387]
[1773555289315,3.65056233,88.439,88.382,3.97678387]
[1773555289816,3.65056233,88.437,88.387,3.97678387]
[1773555291508,10.175,88.436,88.387,3.97678387]
[1773555291723,3.75750149,88.435,88.387,3.97678387]
[1773555291906,35.6,88.454,88.39,3.07006749]
[1773555292109,3.75750149,88.446,88.401,4.00573638]
[1773555293617,3.75750149,88.443,88.401,4.00573638]
[1773555297008,35.6,88.454,88.401,4.00573638]
[1773555297207,3.75750149,88.453,88.411,4.00573638]
[1773555300220,35.6,88.454,88.426,4.00573638]
[1773555300413,35.6,88.454,88.42,3.07006749]
[1773555300620,3.75750149,88.453,88.415,4.00573638]
[1773555309524,3.75750149,88.453,88.42,3.07006749]
[1773555311527,3.75750149,88.453,88.406,10.178]
[1773555311915,3.75750149,88.453,88.407,4.00573638]
[1773555312427,3.75750149,88.453,88.41,3.07006749]
[1773555312620,3.75750149,88.453,88.411,4.00573638]
[1773555314724,3.75750149,88.451,88.411,4.00573638]
[1773555319430,3.75750149,88.451,88.404,10.178]
[1773555320329,3.75750149,88.451,88.404,14.18373638]
[1773555320527,3.75750149,88.451,88.405,4.00573638]
[1773555321935,3.75750149,88.451,88.409,14.06858187]
[1773555322126,3.75750149,88.451,88.411,3.89058187]
[1773555338554,3.91617586,88.449,88.402,3.89058187]
[1773555362560,35.6,88.448,88.411,3.689221]
[1773555362766,3.67428871,88.446,88.411,3.689221]
[1773555368170,3.67428871,88.439,88.391,3.689221]
[1773555378782,3.67428871,88.439,88.353,28.11149381]
[1773555378783,3.67428871,88.427,88.377,3.689221]
[1773555379588,3.67428871,88.427,88.379,3.689221]
[1773555380486,3.67428871,88.437,88.383,3.689221]
[1773555380886,3.67428871,88.437,88.391,3.689221]
[1773555390485,3.67428871,88.437,88.394,3.81796992]
[1773555401701,10.175,88.439,88.394,3.81796992]
[1773555401702,4.01717531,88.435,88.394,3.81796992]
[1773555401898,4.01717531,88.429,88.384,13.99896992]
[1773555402304,10.176,88.428,88.385,3.81796992]
[1773555402603,4.01717531,88.427,88.385,3.81796992]
[1773555403503,4.01717531,88.425,88.385,3.81796992]
[1773555406905,4.01717531,88.423,88.385,3.81796992]
[1773555415911,8.34365621,88.446,88.401,3.70949603]
[1773555416108,3.84026389,88.45,88.401,3.70949603]
[1773555416710,3.84026389,88.45,88.41,3.06830547]
[1773555416906,3.84026389,88.45,88.411,3.70949603]
[1773555422713,3.84026389,88.45,88.412,3.70949603]
[1773555422908,18.296,88.447,88.421,3.70949603]
[1773555424111,8.32710745,88.484,88.373,28.11149381]
[1773555424112,35.6,88.47,88.422,3.70949603]
[1773555424314,3.84026389,88.472,88.431,3.70949603]
[1773555427517,3.84026389,88.469,88.42,3.06830547]
[1773555427917,3.84026389,88.469,88.42,6.7778015]
[1773555428217,3.84026389,88.469,88.421,3.70949603]
[1773555431514,3.84026389,88.469,88.423,3.70949603]
[1773555431818,35.6,88.478,88.431,3.70949603]
[1773555432018,3.84026389,88.477,88.431,3.70949603]
[1773555432719,3.84026389,88.477,88.394,35.6]
[1773555432720,3.84026389,88.469,88.421,3.70949603]
[1773555433516,3.06830547,88.47,88.421,3.70949603]
[1773555433517,3.84026389,88.467,88.421,3.70949603]
[1773555433913,3.84026389,88.459,88.41,3.06830547]
[1773555434321,3.84026389,88.459,88.41,6.7778015]
[1773555434621,3.84026389,88.459,88.411,3.70949603]
[1773555435622,3.84026389,88.459,88.412,3.70949603]
[1773555436724,3.84026389,88.469,88.421,3.70949603]
[1773555440017,3.84026389,88.469,88.423,3.70949603]
[1773555440426,3.84026389,88.469,88.431,3.70949603]
[1773555452132,10.57486314,88.517,88.435,4.00897743]
[1773555452133,10.169,88.489,88.435,4.00897743]
[1773555452329,3.92503561,88.487,88.441,4.00897743]
[1773555465247,10.169,88.486,88.441,4.00897743]
[1773555465445,3.92503561,88.485,88.441,4.00897743]
[1773555467145,10.169,88.484,88.441,4.00897743]
[1773555467347,3.92503561,88.483,88.441,4.00897743]
[1773555473649,4.03034741,88.479,88.441,4.00897743]
[1773555480653,35.6,88.488,88.43,3.0648509]
[1773555480654,39.63034741,88.488,88.442,3.67188163]
[1773555480953,35.6,88.488,88.451,3.67188163]
[1773555481849,35.6,88.513,88.436,21.09545888]
[1773555482153,8.1624287,88.527,88.428,20.352]
[1773555482154,35.6,88.523,88.48,3.0648509]
[1773555484552,35.6,88.523,88.481,10.17]
[1773555485449,8.19218121,88.522,88.48,3.0648509]
[1773555487250,8.19218121,88.522,88.472,10.171]
[1773555488955,8.19218121,88.522,88.48,10.17]
[1773555489154,8.19218121,88.522,88.48,13.2348509]
[1773555493657,8.19218121,88.522,88.471,10.171]
[1773555494161,8.19218121,88.522,88.48,3.0648509]
[1773555497568,8.19218121,88.522,88.483,10.169]
[1773555509473,8.20302946,88.519,88.474,10.17]
[1773555519684,8.20964456,88.541,88.49,3.0648509]
[1773555519879,8.20964456,88.55,88.5,3.0648509]
[1773555521679,8.20964456,88.55,88.506,10.167]
[1773555522385,8.20964456,88.55,88.51,3.06024668]
[1773555523692,8.20964456,88.55,88.5,3.06024668]
[1773555524684,8.13669814,88.56,88.52,3.06024668]
[1773555527490,8.13669814,88.56,88.523,10.165]
[1773555535097,8.13511022,88.549,88.49,3.06024668]
[1773555535605,8.13511022,88.549,88.5,3.06024668]
[1773555536499,8.13511022,88.549,88.518,10.165]
[1773555537997,8.13468467,88.56,88.518,10.165]
[1773555540603,8.13468467,88.56,88.527,10.164]
[1773555540809,8.1368984,88.568,88.52,3.06024668]
[1773555541008,8.1368984,88.568,88.51,3.06024668]
[1773555542500,8.1368984,88.568,88.525,10.165]
[1773555553810,3.06024668,88.56,88.516,10.166]
[1773555554017,8.12640799,88.559,88.516,10.166]
[1773555558011,8.12640799,88.559,88.524,10.165]
[1773555563321,8.12640799,88.559,88.51,3.06024668]
[1773555563322,8.12647277,88.549,88.494,21.09545888]
[1773555563522,8.12647277,88.549,88.49,24.15570556]
[1773555564118,8.12647277,88.549,88.492,21.09545888]
[1773555564314,8.12647277,88.549,88.503,10.167]
[1773555564920,3.06024668,88.54,88.493,10.168]
[1773555565123,8.1260846,88.539,88.492,21.09545888]
[1773555565423,8.1260846,88.539,88.483,21.09545888]
[1773555566126,8.1275282,88.529,88.483,21.09545888]
[1773555566526,8.1275282,88.529,88.488,10.169]
[1773555569727,8.1275282,88.529,88.479,10.17]
[1773555578833,8.1275282,88.529,88.482,10.169]
[1773555594346,8.1275282,88.529,88.49,10.169]
[1773555595046,8.1275282,88.529,88.498,10.168]
[1773555596245,0.13014055,88.509,88.454,3.97520943]
[1773555596443,0.13014055,88.479,88.443,3.97520943]
[1773555600851,0.30704848,88.449,88.414,3.88675547]
[1773555601050,3.06192501,88.45,88.414,3.88675547]
[1773555601656,0.30704848,88.459,88.414,3.88675547]
[1773555601856,0.29356501,88.469,88.414,3.88675547]
[1773555602656,3.06192501,88.46,88.414,3.88675547]
[1773555607361,3.06192501,88.46,88.418,3.87525911]
[1773555608558,0.30412899,88.459,88.418,3.87525911]
[1773555608766,3.06192501,88.45,88.418,3.87525911]
[1773555609264,0.30412899,88.459,88.418,3.87525911]
[1773555611565,35.58,88.5,88.418,3.87525911]
[1773555611566,0.30944809,88.449,88.418,3.87525911]
[1773555617274,0.27435711,88.439,88.395,14.08310115]
[1773555617771,0.27435711,88.439,88.396,3.90310115]
[1773555618966,3.06192501,88.43,88.396,3.90310115]
[1773555619271,0.27632872,88.429,88.384,3.90211535]
[1773555620667,0.27632872,88.429,88.37,3.06192501]
[1773555620668,0.27632872,88.429,88.386,3.9014225]
[1773555622274,0.30599622,88.419,88.361,3.88990343]
[1773555623176,3.06192501,88.43,88.375,3.89090757]
[1773555623375,0.30398795,88.439,88.375,3.89090757]
[1773555624168,0.30398795,88.439,88.38,3.06192501]
[1773555624377,0.30398795,88.439,88.381,3.89454459]
[1773555624578,0.30398795,88.439,88.383,3.89454459]
[1773555624877,0.39564971,88.437,88.383,3.89454459]
[1773555632581,0.37605982,88.435,88.383,3.89454459]
[1773555632878,0.37605982,88.429,88.383,3.89454459]
[1773555633083,3.43795132,88.42,88.383,3.89454459]
[1773555637590,0.50954867,88.419,88.383,3.89454459]
[1773555644686,10.72576974,88.417,88.383,3.89454459]
[1773555645493,0.56993331,88.416,88.383,3.89454459]
[1773555646087,3.07059557,88.41,88.373,3.80953479]
[1773555646293,0.57005417,88.409,88.373,3.80953479]
[1773555648990,46.07759168,88.446,88.323,37.56869882]
[1773555648991,3.74376474,88.399,88.323,1.96869882]
[1773555649185,3.74376474,88.399,88.34,3.07059557]
[1773555649994,3.74376474,88.399,88.313,1.968994]
[1773555649995,3.74376474,88.413,88.36,3.07059557]
[1773555650289,3.74376474,88.413,88.35,3.07059557]
[1773555650995,3.74376474,88.413,88.351,3.96546126]
[1773555651587,3.07059557,88.41,88.358,3.88716641]
[1773555651992,3.90152714,88.409,88.358,3.88716641]
[1773555653496,10.179,88.397,88.358,3.88716641]
[1773555660304,3.90152714,88.389,88.347,3.88716641]
[1773555660701,10.182,88.371,88.347,0.00016641]
[1773555660900,10.182,88.371,88.32,3.07059557]
[1773555661300,10.182,88.371,88.33,3.07059557]
[1773555661901,3.90152714,88.377,88.33,3.07059557]
[1773555662098,10.181,88.381,88.33,3.07059557]
[1773555662705,3.90152714,88.388,88.341,3.88716641]
[1773555663805,3.90152714,88.379,88.341,3.88716641]
[1773555665611,10.182,88.378,88.341,3.88716641]
[1773555668010,3.90152714,88.379,88.341,3.88716641]
[1773555670007,10.181,88.387,88.341,3.88716641]
[1773555670403,3.90152714,88.386,88.341,3.88716641]
[1773555674710,3.90152714,88.382,88.341,3.88716641]
[1773555674912,3.90152714,88.379,88.341,3.88716641]
[1773555676514,10.182,88.377,88.341,3.88716641]
[1773555676813,3.90152714,88.376,88.341,3.88716641]
[1773555680912,3.90152714,88.389,88.341,3.88716641]
[1773555681409,3.90152714,88.387,88.343,3.88716641]
[1773555682616,4.01188805,88.385,88.343,3.88716641]
[1773555683910,4.01188805,88.382,88.343,3.88716641]
[1773555691817,4.01188805,88.379,88.343,3.88716641]
[1773555692522,14.19388805,88.373,88.343,3.88716641]
[1773555694721,4.01188805,88.372,88.343,3.88716641]
[1773555695315,3.07059557,88.38,88.343,3.88716641]
[1773555696713,7.08248362,88.38,88.343,3.88716641]
[1773555697518,4.01188805,88.379,88.343,3.88716641]
[1773555699519,10.182,88.377,88.343,3.88716641]
[1773555699722,4.01188805,88.376,88.343,3.88716641]
[1773555700021,4.01188805,88.367,88.328,3.82012023]
[1773555702421,4.01188805,88.376,88.328,3.82012023]
[1773555703216,10.182,88.375,88.328,3.82012023]
[1773555703524,4.01188805,88.374,88.328,3.82012023]
[1773555704322,14.19288805,88.384,88.331,3.82012023]
[1773555704727,4.01188805,88.383,88.331,3.82012023]
[1773555704920,10.182,88.373,88.331,3.82012023]
[1773555706321,4.01188805,88.374,88.331,3.82012023]
[1773555709023,4.01188805,88.384,88.334,3.82012023]
[1773555709829,4.01188805,88.383,88.337,3.82012023]
[1773555711829,4.02043769,88.38,88.337,3.82012023]
[1773555715128,3.07237791,88.39,88.351,4.03720882]
[1773555715129,4.02043769,88.39,88.351,4.03720882]
[1773555715334,4.02043769,88.401,88.351,4.03720882]
[1773555716633,10.179,88.398,88.353,4.03720882]
[1773555716830,14.19943769,88.398,88.353,4.03720882]
[1773555717033,4.02043769,88.397,88.353,4.03720882]
[1773555717826,4.02043769,88.395,88.353,4.03720882]
[1773555719630,4.02043769,88.39,88.353,4.03720882]
[1773555720434,4.02043769,88.388,88.353,4.03720882]
[1773555721629,10.181,88.387,88.353,4.03720882]
[1773555721935,14.20143769,88.387,88.353,4.03720882]
[1773555722134,4.02043769,88.398,88.353,4.03720882]
[1773555727844,10.178,88.405,88.361,4.03720882]
[1773555728142,4.02043769,88.404,88.361,4.03720882]
[1773555750156,4.02043769,88.404,88.363,4.04209688]
[1773555759759,4.02043769,88.404,88.362,10.183]
[1773555759964,4.02043769,88.404,88.365,4.04209688]
[1773555771178,4.02043769,88.404,88.368,3.93581331]
[1773555780994,3.95932839,88.403,88.368,3.93581331]
[1773555783604,3.95932839,88.403,88.309,33.92]
[1773555783605,3.95932839,88.389,88.322,3.99058338]
[1773555783797,35.6,88.405,88.311,3.99058338]
[1773555783798,3.95932839,88.369,88.311,3.99058338]
[1773555783997,35.6,88.405,88.248,48.85779959]
[1773555783998,3.95932839,88.379,88.331,3.99058338]
[1773555784497,14.06704794,88.423,88.286,1.96954562]
[1773555784498,3.95932839,88.389,88.351,3.99058338]
[1773555788192,3.95932839,88.389,88.352,3.99058338]
[1773555788399,3.95932839,88.399,88.352,3.99058338]
[1773555789497,3.95932839,88.399,88.356,3.99058338]
[1773555790393,3.95932839,88.399,88.345,3.99058338]
[1773555790895,3.95932839,88.398,88.345,3.99058338]
[1773555791098,3.95932839,88.398,88.348,3.99058338]
[1773555791601,3.95932839,88.398,88.351,3.99058338]
[1773555792999,3.95932839,88.398,88.354,3.99058338]
[1773555796901,3.95932839,88.398,88.357,10.184]
[1773555797195,3.95932839,88.398,88.358,3.99058338]
[1773555801907,3.95932839,88.398,88.362,3.86841674]
[1773555803306,3.95932839,88.398,88.364,3.86841674]
[1773555804207,35.6,88.402,88.364,3.86841674]
[1773555805507,35.6,88.402,88.366,3.86841674]
[1773555805907,3.82106673,88.401,88.366,3.86841674]
[1773555810006,3.82106673,88.401,88.367,10.183]
[1773555813512,3.82106673,88.401,88.368,3.86841674]
[1773555823718,3.82106673,88.401,88.367,10.183]
[1773555826114,3.82106673,88.401,88.367,14.05141674]
[1773555829922,3.82106673,88.401,88.368,3.86841674]
[1773555835527,3.82106673,88.401,88.37,3.88220749]
[1773555842435,3.82106673,88.401,88.369,10.182]
[1773555843033,3.82106673,88.401,88.369,14.06420749]
[1773555845739,35.6,88.409,88.37,3.88220749]
[1773555846035,35.6,88.409,88.33,28.11149381]
[1773555846036,3.73743617,88.438,88.381,3.88220749]
[1773555846635,3.73743617,88.438,88.338,33.95]
[1773555846636,3.73743617,88.438,88.391,3.88220749]
[1773555846834,3.73743617,88.438,88.401,3.88220749]
[1773555847035,35.6,88.445,88.401,3.88220749]
[1773555847339,35.6,88.445,88.403,3.88220749]
[1773555847543,35.6,88.445,88.411,3.88220749]
[1773555847741,3.73743617,88.457,88.411,3.88220749]
[1773555848542,3.73743617,88.457,88.413,10.177]
[1773555850240,3.73743617,88.457,88.413,14.05920749]
[1773555851740,3.73743617,88.449,88.403,14.06120749]
[1773555851936,3.73743617,88.409,88.361,3.88220749]
[1773555853544,3.73743617,88.409,88.37,10.182]
[1773555853739,3.73743617,88.409,88.37,14.06420749]
[1773555855545,3.73743617,88.409,88.371,3.88220749]
[1773555869256,3.73743617,88.409,88.363,10.183]
[1773555869863,3.73743617,88.409,88.364,3.67886472]
[1773555876164,3.73743617,88.409,88.367,3.67886472]
[1773555878461,3.73743617,88.409,88.37,3.67886472]
[1773555878962,3.73743617,88.409,88.37,6.74920118]
[1773555879170,3.73743617,88.409,88.371,3.67886472]
[1773555902980,3.97806837,88.407,88.371,3.67886472]
[1773555906288,35.62,88.41,88.371,3.67886472]
[1773555906890,3.97806837,88.409,88.371,3.67886472]
[1773555907085,3.97806837,88.408,88.361,10.183]
[1773555907385,3.97806837,88.408,88.362,3.95379226]
[1773555909693,10.178,88.409,88.325,35.6]
[1773555909694,35.62,88.41,88.371,3.95379226]
[1773555910585,3.97806837,88.409,88.357,3.95379226]
[1773555910790,3.97806837,88.409,88.361,3.95379226]
[1773555911290,3.97806837,88.409,88.366,3.95379226]
[1773555911492,35.62,88.41,88.366,3.95379226]
[1773555912088,35.62,88.41,88.381,3.95379226]
[1773555914795,35.62,88.41,88.383,3.95379226]
[1773555915489,35.62,88.41,88.385,3.95379226]
[1773555916899,35.62,88.43,88.387,3.95379226]
[1773555917599,3.97806837,88.437,88.401,3.95379226]
[1773555919299,3.97806837,88.447,88.411,3.95379226]
[1773555921207,3.97806837,88.447,88.405,10.178]
[1773555921603,3.97806837,88.447,88.406,4.02407006]
[1773555925511,3.97806837,88.447,88.411,4.02407006]
[1773555926514,3.97806837,88.447,88.413,4.02407006]
[1773555930717,3.97806837,88.447,88.414,10.177]
[1773555930919,3.85602844,88.459,88.415,4.02407006]
[1773555931414,3.85602844,88.459,88.421,4.02407006]
[1773555946234,3.85602844,88.479,88.431,4.02407006]
[1773555947621,3.85602844,88.479,88.43,3.06973886]
[1773555947622,3.85602844,88.479,88.433,4.02407006]
[1773555948622,3.85602844,88.479,88.436,4.02407006]
[1773555948821,3.85602844,88.488,88.441,4.02407006]
[1773555950530,3.85602844,88.488,88.441,14.19807006]
[1773555953326,3.85602844,88.488,88.441,4.02407006]
[1773555955538,3.91358856,88.486,88.441,4.02407006]
[1773555958536,3.91358856,88.486,88.442,3.91417363]
[1773555959636,3.91358856,88.486,88.444,3.91417363]
[1773555959941,3.91358856,88.499,88.444,3.91417363]
[1773555960131,39.51358856,88.497,88.444,3.91417363]
[1773555960330,3.91358856,88.496,88.444,3.91417363]
[1773555960535,3.91358856,88.496,88.448,3.91417363]
[1773555961538,3.91358856,88.496,88.451,3.91417363]
[1773555963037,3.91358856,88.496,88.453,3.91417363]
[1773555963341,3.91358856,88.505,88.461,3.91417363]
[1773555964538,3.91358856,88.505,88.463,3.91417363]
[1773555965640,3.91358856,88.505,88.465,3.91417363]
[1773555968445,35.6,88.506,88.465,3.91417363]
[1773555969540,35.6,88.506,88.47,3.91417363]
[1773555970547,39.51358856,88.506,88.47,3.91417363]
[1773555971146,3.91358856,88.505,88.47,3.91417363]
[1773555975756,3.91358856,88.505,88.472,10.171]
[1773555976651,3.91358856,88.505,88.473,3.91417363]
[1773555976947,3.91358856,88.515,88.473,3.91417363]
[1773555981759,3.97439227,88.509,88.463,10.172]
[1773555983155,3.97439227,88.509,88.463,14.16386703]
[1773555983659,3.97439227,88.509,88.464,3.99186703]
[1773555986356,3.97439227,88.506,88.464,3.99186703]
[1773555987661,3.97439227,88.506,88.466,3.99186703]
[1773555992058,3.97439227,88.506,88.468,3.99186703]
[1773555993561,3.97439227,88.506,88.471,3.99186703]
[1773555997269,3.97439227,88.516,88.473,3.99186703]
[1773555998770,3.97439227,88.516,88.475,3.99186703]
[1773555999964,35.58,88.519,88.48,3.06498599]
[1773556000268,35.58,88.519,88.481,3.99186703]
[1773556000570,3.97439227,88.518,88.481,3.99186703]
[1773556001661,3.97439227,88.518,88.483,3.99186703]
[1773556005174,35.58,88.529,88.483,3.99186703]
[1773556005470,10.163,88.543,88.433,20.351]
[1773556005471,3.97439227,88.542,88.491,3.99186703]
[1773556006772,3.97439227,88.542,88.492,3.99186703]
[1773556007270,3.97439227,88.529,88.482,10.169]
[1773556007972,3.97439227,88.529,88.486,10.169]
[1773556008873,3.97439227,88.529,88.487,3.99186703]
[1773556009275,3.97439227,88.529,88.49,14.16086703]
[1773556010877,3.97439227,88.529,88.491,3.67623241]
[1773556015078,3.97439227,88.529,88.493,3.77531671]
[1773556015878,3.97439227,88.529,88.485,10.169]
[1773556018480,3.97439227,88.529,88.485,13.94431671]
[1773556019285,3.97439227,88.529,88.486,3.77531671]
[1773556020085,3.97439227,88.529,88.489,10.169]
[1773556020580,3.97439227,88.529,88.489,13.94431671]
[1773556020782,3.97439227,88.529,88.49,3.77531671]
[1773556026997,3.97439227,88.529,88.481,10.17]
[1773556027484,3.97439227,88.529,88.482,3.77531671]
[1773556030691,3.97439227,88.529,88.484,3.77531671]
[1773556032591,3.98545622,88.519,88.484,3.77531671]
[1773556037297,3.98545622,88.529,88.486,3.77531671]
[1773556038595,3.98545622,88.529,88.488,3.77531671]
[1773556043099,3.98545622,88.529,88.491,3.75593976]
[1773556044703,3.98545622,88.529,88.493,3.75593976]
[1773556046797,3.98545622,88.529,88.483,10.169]
[1773556047003,3.98545622,88.529,88.483,13.92493976]
[1773556047506,3.74795142,88.519,88.475,3.75593976]
[1773556048208,3.74795142,88.519,88.478,3.75593976]
[1773556049101,3.74795142,88.519,88.483,13.92493976]
[1773556049308,3.74795142,88.519,88.484,3.75593976]
[1773556049498,3.74795142,88.527,88.484,3.75593976]
[1773556050503,3.74795142,88.527,88.486,3.75593976]
[1773556062119,3.74795142,88.519,88.474,3.75593976]
[1773556062321,3.74795142,88.519,88.464,3.75593976]
[1773556062919,3.74795142,88.519,88.468,3.75593976]
[1773556064623,3.74795142,88.519,88.475,3.75593976]
[1773556065326,3.74795142,88.519,88.478,3.75593976]
[1773556081337,3.73001478,88.509,88.468,3.66288648]
[1773556081633,3.73001478,88.509,88.441,3.66288648]
[1773556082029,3.73001478,88.499,88.441,3.66288648]
[1773556082537,3.73001478,88.499,88.461,10.172]
[1773556084132,3.73001478,88.499,88.461,13.83488648]
[1773556085239,3.73001478,88.499,88.401,33.9]
[1773556085240,3.73001478,88.489,88.447,3.66288648]
[1773556091843,3.73001478,88.489,88.443,10.174]
[1773556092044,3.73001478,88.479,88.437,3.66288648]
[1773556100055,35.58,88.495,88.42,3.06257774]
[1773556100056,3.73001478,88.469,88.427,3.66288648]
[1773556101756,3.73001478,88.469,88.416,3.81129485]
[1773556103056,3.73001478,88.469,88.417,10.177]
[1773556103356,3.73001478,88.469,88.418,3.81129485]
[1773556103753,3.99447101,88.459,88.418,3.81129485]
[1773556104753,3.99447101,88.449,88.418,3.81129485]
[1773556104953,3.99447101,88.449,88.409,13.98929485]
[1773556105157,3.99447101,88.449,88.41,3.81129485]
[1773556106654,3.99447101,88.449,88.409,10.178]
[1773556106860,3.99447101,88.449,88.4,3.81129485]
[1773556108660,3.99447101,88.449,88.403,3.81129485]
[1773556109051,3.06257774,88.44,88.403,3.81129485]
[1773556109258,3.99447101,88.439,88.403,3.81129485]
[1773556116060,3.99447101,88.449,88.415,3.81129485]
[1773556118159,3.99447101,88.469,88.415,3.81129485]
[1773556119265,3.99447101,88.469,88.421,3.81129485]
[1773556120566,3.99447101,88.469,88.425,10.176]
[1773556120964,3.99447101,88.469,88.425,13.98729485]
[1773556121361,3.99447101,88.469,88.426,3.81129485]
[1773556123069,3.99447101,88.459,88.402,3.81129485]
[1773556124663,3.99447101,88.459,88.414,3.81129485]
[1773556128169,8.73268346,88.496,88.416,3.81129485]
[1773556128170,3.99447101,88.47,88.416,3.81129485]
[1773556128365,7.05704875,88.47,88.416,3.81129485]
[1773556128667,3.99447101,88.469,88.421,3.81129485]
[1773556129267,3.99447101,88.469,88.422,3.81129485]
[1773556129466,3.99447101,88.499,88.441,3.81129485]
[1773556129671,3.99447101,88.499,88.451,3.81129485]
[1773556130564,3.99447101,88.499,88.452,3.89153476]
[1773556131375,3.99447101,88.499,88.454,3.89153476]
[1773556131971,3.78481518,88.489,88.431,3.73553174]
[1773556132873,3.78481518,88.489,88.444,10.174]
[1773556133073,3.78481518,88.489,88.442,3.73553174]
[1773556135784,3.78481518,88.487,88.442,3.73553174]
[1773556136282,3.78481518,88.487,88.443,10.174]
[1773556136477,3.78481518,88.487,88.444,3.73553174]
[1773556139880,3.78481518,88.486,88.444,3.73553174]
[1773556142488,3.78481518,88.496,88.451,3.73553174]
[1773556143189,3.78481518,88.496,88.45,3.06422369]
[1773556143190,3.78481518,88.505,88.461,3.73553174]
[1773556144786,10.167,88.503,88.461,3.73553174]
[1773556144986,3.78481518,88.505,88.461,3.73553174]
[1773556145393,3.78481518,88.505,88.462,3.73553174]
[1773556145588,35.6,88.518,88.311,33.9]
[1773556145589,3.78481518,88.469,88.311,33.9]
[1773556145793,3.06422369,88.35,88.265,3.73553174]
[1773556145987,3.06422369,88.35,88.291,3.73553174]
[1773556146189,3.06422369,88.35,88.211,34.89842828]
[1773556146190,3.78481518,88.379,88.321,3.73553174]
[1773556146386,3.78481518,88.379,88.33,6.79975543]
[1773556146591,10.182,88.377,88.33,3.73553174]
[1773556147096,3.06422369,88.37,88.33,3.73553174]
[1773556147595,3.06422369,88.36,88.312,3.73553174]
[1773556148194,3.06422369,88.35,88.312,3.73553174]
[1773556149294,3.06422369,88.36,88.312,3.73553174]
[1773556149492,6.84903887,88.36,88.312,3.73553174]
[1773556151287,3.78481518,88.386,88.312,3.73553174]
[1773556151494,3.06422369,88.38,88.331,3.73553174]
[1773556151892,6.84903887,88.38,88.331,3.73553174]
[1773556153697,3.78481518,88.38,88.331,3.73553174]
[1773556154695,3.06422369,88.41,88.351,3.73553174]
[1773556154898,3.06422369,88.39,88.351,3.73553174]
[1773556156700,3.78481518,88.395,88.351,3.73553174]
[1773556158994,13.96281518,88.408,88.351,3.73553174]
[1773556159194,3.06422369,88.4,88.351,3.73553174]
[1773556159598,6.84903887,88.4,88.351,3.73553174]
[1773556162505,3.99251858,88.399,88.351,3.73553174]
[1773556166498,10.179,88.399,88.351,3.73553174]
[1773556166702,3.06422369,88.39,88.351,3.73553174]
[1773556167809,3.99251858,88.389,88.351,3.73553174]
[1773556172616,3.99251858,88.403,88.351,3.73553174]
[1773556177314,10.179,88.402,88.351,3.73553174]
[1773556178518,14.17151858,88.402,88.351,3.73553174]
[1773556179315,3.99251858,88.401,88.351,3.73553174]
[1773556180013,3.99251858,88.399,88.351,3.73553174]
[1773556180610,3.99251858,88.389,88.338,14.08564504]
[1773556180817,3.99251858,88.379,88.338,14.08564504]